Cogmind - Beta 15 @@@ ROGUE MODE // 2025.05.19 @ 21:14:55 Player: DuckBoy Result: Destroyed by GW-SWW(R) with Subdweller Beam Cannon Performance ------------- Evolutions (0) 0 Regions Visited (2) 400 Robots Destroyed (41) 205 Value Destroyed (1175) 1175 Prototype IDs (11) 220 Alien Tech Used (0) 0 Bonus (16) 16 TOTAL SCORE: 2016 Bonus ------- High Alert Combat Kills 16 Cogmind --------- Core Integrity 0/250 Matter 213/300 Energy 240/250 System Corruption 0% Temperature Cool (9) Movement Rolling (135) Ox3 Location -10/Subcaves Parts ------- > --- POWER (1) -------- Ion Engine > --- PROPULSION (2) --- Wheel Compact Wheel > --- UTILITY (2) ------ Huge Storage Unit Makeshift Light Armor Plating > --- WEAPON (2) ------- Subdweller Laser Subdweller Shrapnel Launcher > --- INVENTORY (25) --- Light Treads Light Treads Flightbrick Large Storage Unit Subdweller Optics Subdweller Optics Light Armor Plating Scrap Shield Cobbler Unit Subdweller Laser Subdweller Laser Subdweller Beam Cannon Battle Rifle Subdweller Machine Gun Barrage Gun Battle Cannon Battle Cannon Datajack Multitool Flamer Peak State ------------ > --- POWER ------------ Ion Engine > --- PROPULSION ------- Wheel Compact Wheel > --- UTILITY ---------- Huge Storage Unit Makeshift Light Armor Plating > --- WEAPON ----------- Subdweller Laser Barrage Gun > --- INVENTORY -------- Light Treads Light Treads Flightbrick Large Storage Unit Subdweller Optics Subdweller Optics Light Armor Plating Scrap Shield Cobbler Unit Subdweller Laser Subdweller Laser Subdweller Beam Cannon Assault Rifle Battle Rifle Subdweller Machine Gun Battle Cannon Battle Cannon Datajack Multitool Flamer [Rating: 20] Favorites ----------- Power Ion Engine Engine Ion Engine Propulsion Light Treads Treads Light Treads Wheel Wheel Utility Scrap Shield Device Subdweller Optics Storage Large Storage Unit Protection Scrap Shield Weapon Subdweller Laser Energy Gun Subdweller Laser Ballistic Gun Assault Rifle Launcher Grenade Launcher Special Weapon Multitool Special Melee Weapon Datajack Build | -11 -10 -10 ------- Run | Yrd Mat Sub Slots Evolved . | . . . Power . | . . . Propulsion . | . . . Utility . | . . . Weapon . | . . . Parts Attached 37 | 5 11 21 Power 5 | 1 1 3 Engine 5 | 1 1 3 Core . | . . . Reactor . | . . . Propulsion 6 | 2 . 4 Treads 4 | 2 . 2 Leg . | . . . Wheel 2 | . . 2 Hover . | . . . Flight . | . . . Utility 9 | 1 4 4 Device 1 | . . 1 Storage 5 | 1 3 1 Processor . | . . . Hackware . | . . . Protection 3 | . 1 2 Artifact . | . . . Weapon 17 | 1 6 10 Energy Gun 6 | 1 1 4 Energy Cannon . | . . . Ballistic Gun 5 | . 2 3 Ballistic Cannon . | . . . Launcher 3 | . 2 1 Special Weapon 2 | . . 2 Impact Weapon . | . . . Slashing Weapon . | . . . Piercing Weapon . | . . . Special Melee Weapon 1 | . 1 . Unidentified Prototypes . | . . . Parts Lost 7 | . . 7 Power 1 | . . 1 Propulsion 2 | . . 2 Utility 1 | . . 1 Weapon 3 | . . 3 Highest Loss Streak 2 | . . 2 To Critical Strikes . | . . . Average Backups 9 | 2 10 9 Power 1 | . 1 . Propulsion 2 | 1 3 1 Utility 1 | . 1 1 Weapon 4 | . 4 4 Tool/Special . | . . . Unused Backups 14 | . 1 13 Power . | . . . Propulsion 2 | . . 2 Utility 4 | . . 4 Weapon 8 | . 1 7 Tool/Special . | . . . Average Slot Usage (%) 92 | . 96 89 Engine 13 | . 14 13 Treads 19 | . 28 15 Wheel 8 | . . 12 Storage 8 | . 14 5 Protection 12 | . 11 13 Energy Gun 8 | . 5 9 Ballistic Gun 11 | . 11 11 Launcher 2 | . 4 1 Special Weapon 3 | . . 4 Special Melee Weapon 2 | . 6 . Peak Build Rating 20 | 5 8 20 Average Rating 10 | 3 7 12 On Entrance 4 | . 5 8 Naked Turns . | . . . Heaviest Build 96 | 10 34 96 Greatest Support 40 | 40 40 40 Greatest Overweight (x) 3 | . . 3 Average Overweight (x) . | . . 1 Largest Inventory Capacity 25 | 8 15 25 Average Capacity 11 | 7 12 10 Most Carried 25 | 5 14 25 Average Carried 10 | 2 10 10 Final Capacity 25 | 8 15 25 Final Carried 25 | 5 14 25 Class Distribution -------------------- 100% | Mutant Dominant Class ---------------- Mutant | -10/Materials Mutant | -10/Subcaves Resources | -11 -10 -10 ----------- Run | Yrd Mat Sub Matter Collected 1335 | 221 481 633 Remotely . | . . . Salvage Created 1162 | . 596 566 Parts 82 | . 44 38 Haulers Intercepted 2 | . 2 . Recyclers Shooed 1 | . 1 . Parts Field Recycled . | . . . Retrieved Matter . | . . . Parts Self-Destructed 6 | . . 6 Prevented . | . . . Kills | -11 -10 -10 ------- Run | Yrd Mat Sub Combat Hostiles Destroyed 31 | . 18 13 Guns 12 | . 1 11 AOE 19 | . 17 2 Classes Destroyed 12 | . 8 4 Worker 1 | . 1 . Tunneler 1 | . 1 . Hauler 2 | . 2 . Recycler 1 | . 1 . Operator 2 | . 2 . Watcher 3 | . 3 . Swarmer 6 | . 6 . Grunt 14 | . 12 2 Sentry 1 | . . 1 Artisan 1 | . . 1 Cobbler 1 | . . 1 Subdweller 10 | . . 10 Best Kill Streak 7 | . 7 3 Combat Bots Only 5 | . 5 3 Max Kills in Single Turn 3 | . 3 1 Gunslinging . | . . . Exploded 3 | . 3 1 Melee . | . . . Uniques/NPCs Destroyed . | . . . Combat | -11 -10 -10 -------- Run | Yrd Mat Sub Hostile Shots Fired 106 | . 26 80 Missed 34 | . 8 26 Hits 72 | . 18 54 Projectile 72 | . 18 54 AOE 1 | . . 1 Critical Strikes 2 | . . 2 Damage Taken 1472 | . 216 1256 Core 256 | . 35 221 Absorbed by Shields . | . . . Core Remaining (%) 100 | 100 . . Volleys Fired 161 | . 48 113 Largest 2 | . 2 2 Hottest 110 | . 90 110 Shots Fired 236 | . 65 171 Gun 173 | . 37 136 Cannon . | . . . Launcher 34 | . 28 6 Special 29 | . . 29 Kinetic 78 | . 14 64 Thermal 119 | . 23 96 Explosive 34 | . 28 6 Electromagnetic 5 | . . 5 Robot Hit Streak 16 | . 16 15 Robot Miss Streak 5 | . 3 5 Penetration Max . | . . . Secondary Targets 3 | . . 3 Max Gunslinging Chain 1 | . . 1 Shots Hit Robots 147 | . 39 108 Core Hits 79 | . 48 31 Critical Kills 1 | . . 1 Critical Parts Destroyed . | . . . Critical Strikes 3 | . 1 2 Burn 1 | . 1 . Destroy 2 | . . 2 Melee Attacks 8 | . 5 3 Impact . | . . . Slashing . | . . . Piercing . | . . . Sneak Attacks 6 | . 4 2 Combat Hostiles . | . . . Follow-up Attacks . | . . . Damage Inflicted 3447 | . 1610 1837 Guns 1681 | . 303 1378 Cannons . | . . . Explosions 1688 | . 1307 381 Melee . | . . . Ramming . | . . . Kinetic 794 | . 104 690 Thermal 891 | . 199 692 Explosive 1688 | . 1307 381 Electromagnetic 74 | . . 74 Impact . | . . . Slashing . | . . . Piercing . | . . . Highest Corruption . | . . . Average Corruption . | . . . Corruption Purged . | . . . Corruption Blocked . | . . . Overload Shots . | . . . Overflow Damage 22 | . 18 4 Projectiles . | . . . Explosions 22 | . 18 4 Melee . | . . . Knockbacks . | . . . Impact . | . . . Kinetic . | . . . Secondary . | . . . Self-Inflicted Damage 136 | . 32 104 Shots 8 | . 3 5 Rammed . | . . . Targets Rammed . | . . . Kicked . | . . . Crushed . | . . . Highest Temperature 90 | . 90 31 Average Temperature 19 | . 30 6 Received Heat Transfer 324 | . 69 255 Siege Activations . | . . . Martial Activations . | . . . Shielding Activations . | . . . Robots Disrupted . | . . . Combat Hostiles . | . . . Robots Corrupted . | . . . Combat Hostiles . | . . . Parts Fried 2 | . . 2 Impact Corruptions . | . . . Robots Melted . | . . . Combat Hostiles . | . . . Parts Melted 3 | . 2 1 Heat Transferred 1766 | . 607 1159 Parts Sabotaged . | . . . Parts Stolen . | . . . Parts Stripped . | . . . Power Chain Reactions . | . . . Alert | -11 -10 -10 ------- Run | Yrd Mat Sub Maximum Alert Level 2 | . 2 . Low Security (%) 61 | 100 59 . Level 1 29 | . 31 . Level 2 8 | . 9 . Level 3 . | . . . Level 4 . | . . . Level 5 . | . . . High Security . | . . . Max Security . | . . . Peak Influence 437 | . 437 . Initial . | . . . Average 198 | . 210 . Influence Increases 770 | . 700 70 Destroy 0b10 Robot/C 420 | . 360 60 Destroy 0b10 Robot/NC 50 | . 50 . Destroy Leader 80 | . 70 10 Successful Hack 5 | . 5 . Select Force Hacks 30 | . 30 . Disable Machine 105 | . 105 . Destroy Structure 80 | . 80 . Influence Decreases 770 | . 654 116 Entered New Map 23 | . . 23 Time Decay 597 | . 504 93 Purge Threat 150 | . 150 . Squads Dispatched 3 | . 3 . Investigation 1 | . 1 . Extermination . | . . . Reinforcement 2 | . 2 . Assault . | . . . Garrison . | . . . Intercept . | . . . Searches Triggered . | . . . Construction Impeded . | . . . Haulers Reinforced . | . . . Active Scanning Responses . | . . . Cargo Convoy Interrupts . | . . . Stealth | -11 -10 -10 --------- Run | Yrd Mat Sub Distress Signals 2 | . 2 . Communications Jammed . | . . . Distress Signals . | . . . Times Spotted 44 | . 27 17 Peak Tracking Total 5 | . 5 3 Tactical Retreats 1 | . . 1 Traps | -11 -10 -10 ------- Run | Yrd Mat Sub Traps Triggered 1 | . . 1 Indirectly . | . . . Trap Hack Attempts 81 | . 81 . Triggered . | . . . Disarmed 2 | . 2 . Reprogrammed 3 | . 3 . Reused . | . . . Traps Extracted . | . . . Installed . | . . . Triggered . | . . . Machines | -11 -10 -10 ---------- Run | Yrd Mat Sub Machines Disabled 8 | . 7 1 Max in Single Turn 2 | . 2 1 Machines Repaired . | . . . Machines Dismantled . | . . . Machines Sabotaged . | . . . Overloaded Fab Kills . | . . . Hacking | -11 -10 -10 --------- Run | Yrd Mat Sub Machines Accessed 7 | . 6 1 Terminals 5 | . 5 . Fabricators . | . . . Repair Stations . | . . . Recycling Units 1 | . 1 . Scanalyzers . | . . . Garrison Access . | . . . Total Hacks 24 | . 15 9 Successful 17 | . 8 9 Failed 7 | . 7 . Catastrophic . | . . . Database Lockouts . | . . . Manual 6 | . 6 . Terminals 13 | . 13 . Fabricators . | . . . Repair Stations . | . . . Recycling Units 2 | . 2 . Scanalyzers . | . . . Garrison Access . | . . . Terminal Hacks 15 | . 6 9 Record 8 | . . 8 Robot Schematic 1 | . 1 . Alert Level 1 | . 1 . Unreport Threat 1 | . 1 . Locate Traps 1 | . 1 . Dispatch Records 1 | . 1 . Hauler Manifests 1 | . 1 . Proto ID Catalog 1 | . . 1 Fabricator Hacks . | . . . Repair Station Hacks . | . . . Recycling Unit Hacks 1 | . 1 . Retrieve Components 1 | . 1 . Scanalyzer . | . . . Garrison Access Hacks . | . . . Unauthorized Hacks 1 | . 1 . Terminals . | . . . Fabricators . | . . . Repair Stations . | . . . Recycling Units 1 | . 1 . Tunnel 1 | . 1 . Scanalyzers . | . . . Garrison Access . | . . . Data Cores Recovered . | . . . Used . | . . . Hacking Detections 5 | . 5 . Full Trace Events . | . . . Feedback Events . | . . . Feedback Blocked . | . . . Robot Schematics Acquired 1 | . 1 . Robots Built . | . . . Authchips . | . . . Time . | . . . Total Robot Build Rating . | . . . Part Schematics Acquired . | . . . Parts Built . | . . . Authchips . | . . . Time . | . . . Total Part Build Rating . | . . . Parts Repaired . | . . . Time . | . . . Parts Recycled . | . . . Recycled Matter . | . . . Retrieved Matter . | . . . Retrieved Components 9 | . 9 . Parts Scanalyzed . | . . . Part Schematics Acquired . | . . . Parts Damaged . | . . . Bothacking | -11 -10 -10 ------------ Run | Yrd Mat Sub Used RIF Installer . | . . . Robots Hacked 3 | . 2 1 Non-combat 3 | . 2 1 Combat . | . . . Robot Hacks Applied 6 | . 4 2 parse_system 2 | . . 2 no_distress 4 | . 4 . Relay Couplers Released . | . . . Fabnet Peak Effective % . | . . . Robots Rewired . | . . . Allies Hacked . | . . . Hacks Repelled . | . . . Allies | -11 -10 -10 -------- Run | Yrd Mat Sub Total Allies . | . . . Largest Group . | . . . Highest-Rated Group . | . . . Highest-Rated Ally . | . . . Total Orders . | . . . Ally Attacks . | . . . Total Damage . | . . . Kills . | . . . Allies Corrupted . | . . . Allies Melted . | . . . Intel | -11 -10 -10 ------- Run | Yrd Mat Sub Active Infowar (turns) 17 | . . 17 Optics 17 | . . 17 Robot Analysis Total . | . . . Derelict Logs Recovered 1 | . . 1 Drone Launches . | . . . Drone Recoveries . | . . . Exploration | -11 -10 -10 ------------- Run | Yrd Mat Sub Turns Passed 4554 | 87 1505 2962 Spaces Moved 2598 | 52 780 1766 Core 7 | 7 . . Treads 1647 | 45 780 822 Legs . | . . . Wheels 944 | . . 944 Hover . | . . . Flight . | . . . Fastest Speed 50 | 50 160 90 Average Speed 144 | 145 160 138 Slowest Speed 240 | 160 160 240 Overloaded Moves . | . . . Propulsion Burnouts . | . . . Robots Hopped . | . . . Potential Cave-ins . | . . . Cave-ins Triggered . | . . . Exploration Rate (%) 53 | 3 99 58 Regions Visited 2 Branch Regions 1 Pre-discovered Areas 2 | . 1 1 Known Exits Taken . | . . . Unknown Exits Taken 2 | 1 1 . Scrap Searched 3 | . . 3 Spaces Dug . | . . . Terrain Destroyed 104 | . 77 27 Melee . | . . . Projectile 1 | . . 1 AOE 103 | . 77 26 Terrain Rammed . | . . . Walls Destroyed . | . . . Machines Disabled . | . . . Actions | -11 -10 -10 --------- Run | Yrd Mat Sub Total 3127 | 61 969 2097 Wait 151 | . 21 130 Move 2596 | 51 779 1766 Hop . | . . . Pick Up 50 | 5 13 32 Fast Attach 13 | 5 1 7 Attach 8 | . 1 7 Detach 1 | . . 1 Swap 29 | . 13 16 Drop 24 | . 7 17 Fire 161 | . 48 113 Melee 8 | . 5 3 Ram . | . . . Kick . | . . . Crush . | . . . Escape Stasis . | . . . Rewire . | . . . Trap 81 | . 81 . Miscellaneous 5 | . . 5 Route ------- -11/Scrapyard -10/Materials (discovered 5 exits: [*Mat x3] / [*Min] / *Sub) -10/Subcaves (discovered 1 exit: [*Mat]) History --------- Turn | Location | Event 5 | -11/Scrapyard | Discovered new exit (range 14) 88 | -11/Scrapyard | Entered Materials 216 | -10/Materials | Discovered new exit (range 14) 301 | -10/Materials | Build established: Mutant 557 | -10/Materials | Discovered new exit (range 12) 626 | -10/Materials | Discovered new exit (range 15) 1159 | -10/Materials | Discovered new exit (range 9) 1330 | -10/Materials | Discovered new exit (range 7) 1593 | -10/Materials | Entered Subcaves 1708 | -10/Subcaves | Ambushed by Subdweller buried in earth 2423 | -10/Subcaves | Shifting Twisted Machinery released Battle Cannon 2427 | -10/Subcaves | Shifting Twisted Machinery released Sub. Laser 2536 | -10/Subcaves | A swath of the cavern ceiling suddenly collapsed 2902 | -10/Subcaves | Learned location of Zion (-6) 3757 | -10/Subcaves | Visited 4L-MR0's lab 4154 | -10/Subcaves | Found Flightbrick 4321 | -10/Subcaves | A swath of the cavern ceiling suddenly collapsed 4338 | -10/Subcaves | Core integrity fell below 50% 4524 | -10/Subcaves | Discovered new exit (range 4) 4553 | -10/Subcaves | A Subdweller sparked back to life 4553 | -10/Subcaves | A Subdweller sparked back to life 4553 | -10/Subcaves | A Subdweller sparked back to life 4554 | -10/Subcaves | Core integrity fell below 20% 4555 | -10/Subcaves | Destroyed by GW-SWW(R) with Subdweller Beam Cannon Last Messages --------------- 04154_ Acquired Flightbrick. 04160_ Connecting with 4L-MR0's Prototype Logs... A swath of the cavern ceiling suddenly collapses. 04337_ Triggered Shrapnel Trap. 04337_ An expanding cloud of shrapnel blasts out in all directions. 04399_ Acquired 8 matter. 04407_ Acquired 7 matter. 04414_ Acquired 13 matter. 04424_ Acquired 50 matter. 04437_ Acquired 11 matter. 04442_ Acquired 14 matter. 04453_ Acquired 8 matter. 04484_ F5-KAD(R) destroyed. 04487_ Acquired 19 matter. 04490_ Dropped Assault Rifle. 04490_ Acquired Sub. Shrapnel Launcher. 04524_ EXIT=FOUND 04553_ GW-SWW(R) creaks and sparks as it begins to move. 04553_ YV-XG4(R) creaks and sparks as it begins to move. 04553_ 9M-NJM(R) creaks and sparks as it begins to move. Map ----- +----------------------------------------------------+ | ?????????????????????????????????????????????????? | | ?????????????????????????????????????????????????? | | ?????????????????????????????????????????????????? | | ?????????????????????????????????????????????????? | | ?????????????????????????????????????????????????? | | ?????????????????????????????????????????????????? | | ?????????????????????????????????????????????????? | | ?????????????????????????????????????????????????? | | ?????????????????????????????????????????????????? | | ?????????????????????????????????????????????????? | | ?????????????????????????????????????????????????? | | ?????????????????????????????????????????????????? | | ?????????????????????????????????????????????????? | | ?????????????????????????????????????????????????? | | ?????????????????????????????????????????????????? | | ?????????????????????????????????????????????????? | | ?????????????????????????????????????????????????? | | ?????????????????????????????????????????????????? | | ?????????????????????????????????????????????????? | | ?????????????????????????????????????????????????? | | ?????????????????????????????????????????????????? | | ????????????????????######???????????????????????? | | ????????????????????# < ##??????????????????????? | | ????????????????????# R#??????????????????????? | | ????????????????????# #??????????????????????? | | ????????????????????#& R @#??????????????????????? | | ????????????????????# R ##?????????????????????? | | ????????????????????##< ######?#??????????????? | | ?????????????????????# ## #??????????????? | | ?????????????????????## #????##?##???#### | | ??????????????????????#### < ## #?? # ##### ## | | ????????????????????????# #### | | ????????????????????????# #### ###### ## # | | ????????????????????????# # #### ## ### ## | | ????????????????????????# | | ????????????????????????### ## ## # # ## # | | ??????????????????????????######################" | | ???????????????????????????????????????????????##" | | ???????????????????????????????????????????????# " | | ???????????????????????????????????????????????##" | | ???????????????????????????????????????????????#" | | ???????????????????????????????????????????????#"" | | ???????????????????????????????????????????????### | | ?????????????????????????????????????????????????# | | ?????????????????????????????????????????????????? | | ?????????????????????????????????????????????????? | | ?????????????????????????????????????????????????? | | ?????????????????????????????????????????????????? | | ?????????????????????????????????????????????????? | | ?????????????????????????????????????????????????? | +----------------------------------------------------+ Best States ------------- Heat Dissipation 25 Energy Generation 15 Energy Capacity 250 Matter Stores 300 Matter Capacity 300 Sight Range 21 Terrain Scan Density 10 Armor Coverage 800 Evasion (%) 40 Recoil Reduction 2 Item Schematics ----------------- None Robot Schematics ------------------ M-13 Machinist | -10/Materials | Hacked Fabricated ------------ Nothing Repaired ---------- Nothing Alien Tech Used ----------------- None Achievements -------------- None Challenges ------------ None Game ------ Seed ShrapnelBlastBasin Manual? 0 Play Time 00:34:08 Cumulative 500.5 hours Start 2025.05.19 @ 20:37:35 End 2025.05.19 @ 21:14:55 Sessions 1 Manual Loads 0 Difficulty Rogue Special Mode None Game No. 316 Rogue 313 Adventurer 3 Explorer 0 Win Type - Total 8 Types 7/0/1/0/0/0/0/0/0/0 Lore% 74 Gallery% 71 Achievement% 68 Wizard Run 0 Options --------- Layout 0 ASCII 0 Keyboard 0 Movement Numpad Keybinds 0 Fullscreen 1 Font 18/SmallcapsGlow Map View 76x50 Zoom Use 0% Tactical HUD 1 Map Filters NONE Filters NONE Steam 1 RUN: 032a8add-e7ba-4101-b1df-7c78f3ff9d3c